[Event "Early-Titled-Tuesday-Blitz-May-14-2024"]
[Site "Chess.com"]
[Date "2024.05.14"]
[Round "2"]
[White "Khromkin"]
[Black "ChessSwole"]
[Result "1-0"]
[WhiteElo "2387"]
[BlackElo "2606"]
[TimeControl "180+1"]
[EndTime "8:18:52 PDT"]
[Termination "Khromkin won by checkmate"]

1. d4 {[%clk 0:02:56.5]} 1... d5 {[%clk 0:02:59.1]} 2. c4 {[%clk 0:02:57.2]}
2... dxc4 {[%clk 0:03:00]} 3. Nf3 {[%clk 0:02:56.6]} 3... Nf6 {[%clk 0:03:00.1]}
4. e3 {[%clk 0:02:57.3]} 4... e6 {[%clk 0:03:00.7]} 5. Bxc4 {[%clk 0:02:57.9]}
5... a6 {[%clk 0:03:00.9]} 6. O-O {[%clk 0:02:58.5]} 6... c5 {[%clk 0:03:01.4]}
7. Qe2 {[%clk 0:02:56.1]} 7... b5 {[%clk 0:02:54.5]} 8. Bb3 {[%clk 0:02:55.6]}
8... Bb7 {[%clk 0:02:53.5]} 9. a4 {[%clk 0:02:54.5]} 9... c4 {[%clk 0:02:50.9]}
10. Bc2 {[%clk 0:02:54.3]} 10... Nbd7 {[%clk 0:02:47.4]} 11. e4 {[%clk
0:02:37.8]} 11... Be7 {[%clk 0:02:39.8]} 12. Nbd2 {[%clk 0:02:32.8]} 12... Rc8
{[%clk 0:02:24.6]} 13. axb5 {[%clk 0:02:27.2]} 13... axb5 {[%clk 0:02:25.5]} 14.
e5 {[%clk 0:02:25.2]} 14... Nd5 {[%clk 0:02:23.6]} 15. Ne4 {[%clk 0:02:25.8]}
15... h6 {[%clk 0:02:13.7]} 16. Ng3 {[%clk 0:02:20.7]} 16... c3 {[%clk
0:01:54.3]} 17. Nh5 {[%clk 0:01:33]} 17... Bf8 {[%clk 0:01:41.7]} 18. Qxb5
{[%clk 0:01:11]} 18... Bc6 {[%clk 0:01:32.9]} 19. Qe2 {[%clk 0:01:02.9]} 19...
g6 {[%clk 0:01:30.2]} 20. Ng3 {[%clk 0:01:00.9]} 20... cxb2 {[%clk 0:01:11.8]}
21. Bxb2 {[%clk 0:01:00.2]} 21... Nf4 {[%clk 0:01:02.6]} 22. Qd2 {[%clk
0:00:51.1]} 22... g5 {[%clk 0:00:41.5]} 23. Ne4 {[%clk 0:00:48.9]} 23... Be7
{[%clk 0:00:37.5]} 24. Ba3 {[%clk 0:00:48.7]} 24... Kf8 {[%clk 0:00:30.5]} 25.
Nd6 {[%clk 0:00:45.2]} 25... Rb8 {[%clk 0:00:24.5]} 26. Be4 {[%clk 0:00:43.4]}
26... Bxe4 {[%clk 0:00:22.6]} 27. Nxe4 {[%clk 0:00:44]} 27... Kg7 {[%clk
0:00:20.5]} 28. g3 {[%clk 0:00:30]} 28... Nd5 {[%clk 0:00:17.8]} 29. Bxe7 {[%clk
0:00:22.9]} 29... Qxe7 {[%clk 0:00:18.7]} 30. Ra7 {[%clk 0:00:22.8]} 30... Rb3
{[%clk 0:00:16.6]} 31. Nc5 {[%clk 0:00:20.4]} 31... Rxf3 {[%clk 0:00:12.3]} 32.
Rxd7 {[%clk 0:00:20.2]} 32... Qe8 {[%clk 0:00:11.7]} 33. Qe2 {[%clk 0:00:18.3]}
33... Rf5 {[%clk 0:00:10.1]} 34. Ra1 {[%clk 0:00:15.6]} 34... Rf8 {[%clk
0:00:08.9]} 35. Raa7 {[%clk 0:00:16.1]} 35... Kg8 {[%clk 0:00:09.5]} 36. Qe4
{[%clk 0:00:13.2]} 36... Qc8 {[%clk 0:00:07.2]} 37. Nxe6 {[%clk 0:00:12.3]}
37... Qc1+ {[%clk 0:00:07.3]} 38. Kg2 {[%clk 0:00:12.3]} 38... Ne3+ {[%clk
0:00:02.6]} 39. Qxe3 {[%clk 0:00:09]} 39... Qc6+ {[%clk 0:00:03.3]} 40. d5
{[%clk 0:00:07.4]} 40... Qc4 {[%clk 0:00:02.3]} 41. Nxf8 {[%clk 0:00:06.8]}
41... Kxf8 {[%clk 0:00:02.9]} 42. e6 {[%clk 0:00:07.2]} 42... Rxd5 {[%clk
0:00:02.5]} 43. Rxd5 {[%clk 0:00:06.8]} 43... Qxd5+ {[%clk 0:00:03.4]} 44. Qf3
{[%clk 0:00:07.3]} 44... Qxe6 {[%clk 0:00:03.4]} 45. Ra8+ {[%clk 0:00:04.5]}
45... Kg7 {[%clk 0:00:03.9]} 46. Qc3+ {[%clk 0:00:04.9]} 46... f6 {[%clk
0:00:04.6]} 47. Ra7+ {[%clk 0:00:04.7]} 47... Kg8 {[%clk 0:00:03.2]} 48. Qd3
{[%clk 0:00:01.5]} 48... Qc6+ {[%clk 0:00:03]} 49. Qf3 {[%clk 0:00:01.6]} 49...
Qe6 {[%clk 0:00:02.2]} 50. Qa8+ {[%clk 0:00:02.1]} 50... Qe8 {[%clk 0:00:02.5]}
51. Qxe8# {[%clk 0:00:02.3]} 1-0

[Event "Early-Titled-Tuesday-Blitz-May-14-2024"]
[Site "Chess.com"]
[Date "2024.05.14"]
[Round "2"]
[White "AnnaChessLook"]
[Black "Antosha_Chekhonte"]
[Result "0-1"]
[WhiteElo "2352"]
[BlackElo "2567"]
[TimeControl "180+1"]
[EndTime "8:18:54 PDT"]
[Termination "Antosha_Chekhonte won by resignation"]

1. d4 {[%clk 0:03:00.9]} 1... Nf6 {[%clk 0:02:59.7]} 2. c4 {[%clk 0:03:00.9]}
2... e6 {[%clk 0:03:00.3]} 3. Nf3 {[%clk 0:03:01.2]} 3... d5 {[%clk 0:03:00.2]}
4. Nc3 {[%clk 0:03:00.6]} 4... Be7 {[%clk 0:02:59.5]} 5. Bf4 {[%clk 0:02:58.2]}
5... O-O {[%clk 0:02:59]} 6. e3 {[%clk 0:02:58.4]} 6... b6 {[%clk 0:02:59.3]} 7.
Qc2 {[%clk 0:02:51.9]} 7... Ba6 {[%clk 0:02:46.4]} 8. Ne5 {[%clk 0:02:21.1]}
8... c5 {[%clk 0:02:40.3]} 9. Rd1 {[%clk 0:02:18.5]} 9... cxd4 {[%clk
0:02:33.3]} 10. exd4 {[%clk 0:02:16.3]} 10... dxc4 {[%clk 0:02:23.4]} 11. Bxc4
{[%clk 0:02:13.8]} 11... Bxc4 {[%clk 0:02:21.9]} 12. Nxc4 {[%clk 0:02:14.7]}
12... Nc6 {[%clk 0:02:20.8]} 13. Be3 {[%clk 0:02:01.4]} 13... Rc8 {[%clk
0:02:17.2]} 14. O-O {[%clk 0:02:01.9]} 14... Qc7 {[%clk 0:01:55.7]} 15. Qe2
{[%clk 0:01:31.1]} 15... Rfd8 {[%clk 0:01:46.3]} 16. b3 {[%clk 0:01:17.3]} 16...
Bb4 {[%clk 0:01:31.1]} 17. Nb5 {[%clk 0:01:02.7]} 17... Qb8 {[%clk 0:01:22.6]}
18. a3 {[%clk 0:00:45.1]} 18... Be7 {[%clk 0:01:15.4]} 19. Qf3 {[%clk
0:00:20.1]} 19... Nd5 {[%clk 0:01:07.2]} 20. Bc1 {[%clk 0:00:18]} 20... a6
{[%clk 0:01:03.5]} 21. Nc3 {[%clk 0:00:18.4]} 21... Nxc3 {[%clk 0:00:56.8]} 22.
Qxc3 {[%clk 0:00:19.3]} 22... b5 {[%clk 0:00:57.1]} 23. Na5 {[%clk 0:00:18.7]}
23... Nxd4 {[%clk 0:00:43.2]} 24. Qe3 {[%clk 0:00:15.6]} 24... Nf5 {[%clk
0:00:32.9]} 25. Qf3 {[%clk 0:00:13.9]} 25... Qb6 {[%clk 0:00:24.2]} 26. b4
{[%clk 0:00:12]} 26... Bf6 {[%clk 0:00:19.4]} 27. h3 {[%clk 0:00:11.5]} 27... h6
{[%clk 0:00:19.4]} 28. Qg4 {[%clk 0:00:11.2]} 28... Kh7 {[%clk 0:00:17.6]} 29.
Qe4 {[%clk 0:00:11.1]} 29... Rd4 {[%clk 0:00:15.2]} 30. Qb1 {[%clk 0:00:09.1]}
30... Rcd8 {[%clk 0:00:14.1]} 31. Be3 {[%clk 0:00:08.8]} 31... Rxd1 {[%clk
0:00:09.8]} 32. Bxb6 {[%clk 0:00:09.7]} 32... Rxb1 {[%clk 0:00:09.7]} 33. Rxb1
{[%clk 0:00:10.6]} 33... Rd3 {[%clk 0:00:08.2]} 34. g4 {[%clk 0:00:10.2]} 34...
Nh4 {[%clk 0:00:07.6]} 35. Be3 {[%clk 0:00:09.6]} 35... Rxa3 {[%clk 0:00:07.5]}
36. Nc6 {[%clk 0:00:09.1]} 36... Nf3+ {[%clk 0:00:06.9]} 37. Kg2 {[%clk
0:00:08.1]} 37... Ne5 {[%clk 0:00:06.9]} 38. Nb8 {[%clk 0:00:08.6]} 38... Nc4
{[%clk 0:00:06.7]} 39. Bc5 {[%clk 0:00:08.6]} 39... Ra2 {[%clk 0:00:06.2]} 40.
Rd1 {[%clk 0:00:08.9]} 40... Kg6 {[%clk 0:00:06.4]} 41. Rd7 {[%clk 0:00:09.3]}
41... Nd2 {[%clk 0:00:04.8]} 42. Ra7 {[%clk 0:00:09.8]} 42... Ne4 {[%clk
0:00:04.6]} 43. Be3 {[%clk 0:00:10.4]} 43... Bg5 {[%clk 0:00:04.3]} 44. Bxg5
{[%clk 0:00:08.7]} 44... Rxf2+ {[%clk 0:00:04.8]} 45. Kg1 {[%clk 0:00:08.1]}
45... hxg5 {[%clk 0:00:05.1]} 46. Nxa6 {[%clk 0:00:08.6]} 46... Rf3 {[%clk
0:00:04.5]} 47. Nc7 {[%clk 0:00:09.5]} 47... Rxh3 {[%clk 0:00:04.6]} 48. Nxb5
{[%clk 0:00:10.3]} 48... Rg3+ {[%clk 0:00:04.6]} 49. Kh2 {[%clk 0:00:09.8]}
49... Rxg4 {[%clk 0:00:05.1]} 50. Nc3 {[%clk 0:00:09.5]} 50... Nxc3 {[%clk
0:00:04.9]} 51. Rc7 {[%clk 0:00:09.9]} 51... Nd5 {[%clk 0:00:04.3]} 52. Rc4
{[%clk 0:00:09.2]} 52... Rxc4 {[%clk 0:00:03.5]} 0-1

[Event "Early-Titled-Tuesday-Blitz-May-14-2024"]
[Site "Chess.com"]
[Date "2024.05.14"]
[Round "2"]
[White "Zq1"]
[Black "ContrVersia"]
[Result "0-1"]
[WhiteElo "2616"]
[BlackElo "2911"]
[TimeControl "180+1"]
[EndTime "8:18:55 PDT"]
[Termination "ContrVersia won by resignation"]

1. d4 {[%clk 0:03:00.9]} 1... Nf6 {[%clk 0:02:46.1]} 2. c4 {[%clk 0:03:00.7]}
2... e6 {[%clk 0:02:46.2]} 3. g3 {[%clk 0:03:00]} 3... d5 {[%clk 0:02:45.8]} 4.
Bg2 {[%clk 0:02:59.4]} 4... dxc4 {[%clk 0:02:46.7]} 5. Qa4+ {[%clk 0:02:56.4]}
5... Nbd7 {[%clk 0:02:42.8]} 6. Nd2 {[%clk 0:02:46.9]} 6... c6 {[%clk
0:02:26.4]} 7. Qxc4 {[%clk 0:02:44.8]} 7... e5 {[%clk 0:02:26.7]} 8. Ngf3 {[%clk
0:02:42.5]} 8... Bd6 {[%clk 0:02:25.8]} 9. O-O {[%clk 0:02:37.5]} 9... O-O
{[%clk 0:02:25.6]} 10. dxe5 {[%clk 0:02:37.1]} 10... Nxe5 {[%clk 0:02:26.5]} 11.
Nxe5 {[%clk 0:02:36.9]} 11... Bxe5 {[%clk 0:02:27.4]} 12. Nf3 {[%clk 0:02:35.7]}
12... Bc7 {[%clk 0:02:25]} 13. Bf4 {[%clk 0:02:33.5]} 13... Be6 {[%clk
0:02:24.1]} 14. Bxc7 {[%clk 0:02:23.9]} 14... Bxc4 {[%clk 0:02:23.7]} 15. Bxd8
{[%clk 0:02:23.8]} 15... Raxd8 {[%clk 0:02:24.6]} 16. Rfe1 {[%clk 0:02:23]}
16... a5 {[%clk 0:02:15.6]} 17. b3 {[%clk 0:02:22.3]} 17... Be6 {[%clk
0:02:11.4]} 18. e3 {[%clk 0:02:22.2]} 18... Bd5 {[%clk 0:02:04.5]} 19. Rac1
{[%clk 0:02:13.6]} 19... Rfe8 {[%clk 0:02:04.1]} 20. Nd4 {[%clk 0:02:12.5]}
20... Bxg2 {[%clk 0:02:03.9]} 21. Kxg2 {[%clk 0:02:12]} 21... Nd5 {[%clk
0:01:59.9]} 22. Rc5 {[%clk 0:02:07.7]} 22... Ra8 {[%clk 0:01:54.9]} 23. a3
{[%clk 0:02:01.6]} 23... g6 {[%clk 0:01:53.6]} 24. Rec1 {[%clk 0:01:57.2]} 24...
Kg7 {[%clk 0:01:48.7]} 25. Ne2 {[%clk 0:01:52.1]} 25... Nc7 {[%clk 0:01:38.7]}
26. h4 {[%clk 0:01:48.9]} 26... Ne6 {[%clk 0:01:27.6]} 27. R5c4 {[%clk
0:01:45.6]} 27... Red8 {[%clk 0:01:27.7]} 28. Nf4 {[%clk 0:01:41.6]} 28... Nxf4+
{[%clk 0:01:22.7]} 29. gxf4 {[%clk 0:01:40.4]} 29... Rd3 {[%clk 0:01:13.6]} 30.
R1c3 {[%clk 0:01:40.2]} 30... Rad8 {[%clk 0:01:14.2]} 31. Kf3 {[%clk 0:01:30.5]}
31... Kf6 {[%clk 0:01:08.4]} 32. a4 {[%clk 0:01:27.6]} 32... R8d5 {[%clk
0:01:06.6]} 33. Rxd3 {[%clk 0:01:20.8]} 33... Rxd3 {[%clk 0:01:07.5]} 34. b4
{[%clk 0:01:20.6]} 34... axb4 {[%clk 0:00:51.8]} 35. Rxb4 {[%clk 0:01:19.4]}
35... Rd7 {[%clk 0:00:52.7]} 36. a5 {[%clk 0:01:14.2]} 36... Ke6 {[%clk
0:00:52.8]} 37. Ke4 {[%clk 0:01:11.1]} 37... f5+ {[%clk 0:00:52]} 38. Kf3 {[%clk
0:01:10.2]} 38... c5 {[%clk 0:00:37]} 39. Rb6+ {[%clk 0:01:07.5]} 39... Kd5
{[%clk 0:00:37.3]} 40. h5 {[%clk 0:01:04.3]} 40... Kc4 {[%clk 0:00:33.8]} 41.
hxg6 {[%clk 0:01:02.1]} 41... hxg6 {[%clk 0:00:34.7]} 42. Rxg6 {[%clk 0:01:01]}
42... Kb4 {[%clk 0:00:35.2]} 43. a6 {[%clk 0:01:00.3]} 43... bxa6 {[%clk
0:00:30.9]} 44. Rxa6 {[%clk 0:00:58.6]} 44... c4 {[%clk 0:00:31.8]} 45. Rb6+
{[%clk 0:00:45.2]} 45... Ka3 {[%clk 0:00:31.7]} 46. e4 {[%clk 0:00:31.6]} 46...
Rd3+ {[%clk 0:00:30.7]} 47. Ke2 {[%clk 0:00:31.8]} 47... fxe4 {[%clk 0:00:31.6]}
48. f5 {[%clk 0:00:31.7]} 48... c3 {[%clk 0:00:29.4]} 49. Ra6+ {[%clk
0:00:22.8]} 49... Kb2 {[%clk 0:00:29.4]} 50. Rb6+ {[%clk 0:00:23]} 50... Kc1
{[%clk 0:00:26.5]} 51. f6 {[%clk 0:00:22]} 51... c2 {[%clk 0:00:20.9]} 52. Rb4
{[%clk 0:00:15.9]} 52... Rf3 {[%clk 0:00:18.5]} 53. Rxe4 {[%clk 0:00:15]} 53...
Rxf6 {[%clk 0:00:19.2]} 54. Rb4 {[%clk 0:00:13.6]} 54... Re6+ {[%clk 0:00:18.3]}
55. Kf3 {[%clk 0:00:07]} 55... Kd2 {[%clk 0:00:10.1]} 56. Rd4+ {[%clk
0:00:05.7]} 56... Kc3 {[%clk 0:00:10.3]} 57. Rd8 {[%clk 0:00:05.3]} 57... Rc6
{[%clk 0:00:10.6]} 0-1

[Event "Early-Titled-Tuesday-Blitz-May-14-2024"]
[Site "Chess.com"]
[Date "2024.05.14"]
[Round "2"]
[White "Raud100"]
[Black "ImportedItalianMaple"]
[Result "0-1"]
[WhiteElo "2355"]
[BlackElo "2591"]
[TimeControl "180+1"]
[EndTime "8:18:56 PDT"]
[Termination "ImportedItalianMaple won by resignation"]

1. d4 {[%clk 0:03:00.9]} 1... g6 {[%clk 0:03:00.3]} 2. e4 {[%clk 0:03:00.7]}
2... Bg7 {[%clk 0:03:00.7]} 3. Nc3 {[%clk 0:03:01.2]} 3... d5 {[%clk 0:03:00.8]}
4. exd5 {[%clk 0:02:58.7]} 4... Nf6 {[%clk 0:03:01.3]} 5. Bc4 {[%clk 0:02:57.8]}
5... Nbd7 {[%clk 0:03:01.5]} 6. Qf3 {[%clk 0:02:51.9]} 6... Nb6 {[%clk
0:03:01.3]} 7. Bb3 {[%clk 0:02:51.8]} 7... a5 {[%clk 0:03:01.7]} 8. a3 {[%clk
0:02:49.4]} 8... a4 {[%clk 0:03:01.3]} 9. Ba2 {[%clk 0:02:48.2]} 9... Bg4 {[%clk
0:03:00]} 10. Qg3 {[%clk 0:02:46.1]} 10... Bf5 {[%clk 0:03:00.4]} 11. Bb1 {[%clk
0:02:39.4]} 11... Nbxd5 {[%clk 0:02:54]} 12. Nxd5 {[%clk 0:02:37.6]} 12... Qxd5
{[%clk 0:02:52.7]} 13. Nf3 {[%clk 0:02:33.7]} 13... O-O {[%clk 0:02:45]} 14. O-O
{[%clk 0:02:29.6]} 14... c6 {[%clk 0:02:15.9]} 15. c3 {[%clk 0:02:23.4]} 15...
Bxb1 {[%clk 0:02:13.8]} 16. Rxb1 {[%clk 0:02:24.3]} 16... Rac8 {[%clk
0:02:05.4]} 17. Re1 {[%clk 0:02:22.2]} 17... Ne4 {[%clk 0:02:00.4]} 18. Qh4
{[%clk 0:02:17]} 18... f5 {[%clk 0:01:55.1]} 19. Qxe7 {[%clk 0:02:13.6]} 19...
Bf6 {[%clk 0:01:18.1]} 20. Qb4 {[%clk 0:02:07.1]} 20... b5 {[%clk 0:01:10.7]}
21. Bh6 {[%clk 0:02:00.9]} 21... Rfe8 {[%clk 0:01:10.7]} 22. h4 {[%clk
0:01:42.7]} 22... Be7 {[%clk 0:01:01.3]} 23. Qa5 {[%clk 0:01:42.2]} 23... Bd6
{[%clk 0:00:49.7]} 24. Ne5 {[%clk 0:01:35.6]} 24... Bxe5 {[%clk 0:00:23.1]} 25.
dxe5 {[%clk 0:01:36.5]} 25... Qxe5 {[%clk 0:00:23.7]} 26. f3 {[%clk 0:01:27.8]}
26... Qg3 {[%clk 0:00:16.1]} 27. fxe4 {[%clk 0:01:24.2]} 27... Qxh4 {[%clk
0:00:16.8]} 28. Bd2 {[%clk 0:01:12.4]} 28... Rcd8 {[%clk 0:00:16]} 29. Rbd1
{[%clk 0:01:10.3]} 29... Rxd2 {[%clk 0:00:14.7]} 30. Rf1 {[%clk 0:00:54.8]}
30... Rxb2 {[%clk 0:00:11.6]} 31. Qc7 {[%clk 0:00:49.2]} 31... Qxe4 {[%clk
0:00:12.2]} 32. Qh2 {[%clk 0:00:35.5]} 32... Qe2 {[%clk 0:00:10.9]} 33. Kh1
{[%clk 0:00:31.6]} 33... h5 {[%clk 0:00:08.5]} 34. Qg3 {[%clk 0:00:20.3]} 34...
Qg4 {[%clk 0:00:04.9]} 35. Qxg4 {[%clk 0:00:20.5]} 35... hxg4 {[%clk 0:00:05.2]}
36. Rd6 {[%clk 0:00:21.3]} 36... Kf7 {[%clk 0:00:04.6]} 37. Rxc6 {[%clk
0:00:21.2]} 37... Ree2 {[%clk 0:00:04.2]} 38. Rg1 {[%clk 0:00:20.3]} 38... Rb3
{[%clk 0:00:03.2]} 39. Rd1 {[%clk 0:00:18.3]} 39... Rxa3 {[%clk 0:00:01.3]} 40.
Rd7+ {[%clk 0:00:18.2]} 40... Re7 {[%clk 0:00:02]} 41. Rdd6 {[%clk 0:00:17.6]}
41... Rb3 {[%clk 0:00:01.6]} 42. Rf6+ {[%clk 0:00:16.6]} 42... Ke8 {[%clk
0:00:02.4]} 43. Rxg6 {[%clk 0:00:14.9]} 43... Kd7 {[%clk 0:00:03]} 44. Ra6
{[%clk 0:00:14.7]} 44... a3 {[%clk 0:00:03.1]} 45. Ra7+ {[%clk 0:00:15]} 45...
Ke8 {[%clk 0:00:03.2]} 46. Rga6 {[%clk 0:00:12.8]} 46... Kf7 {[%clk 0:00:03.8]}
47. Kh2 {[%clk 0:00:13.3]} 47... Rxc3 {[%clk 0:00:04.1]} 48. Rxa3 {[%clk
0:00:12.3]} 48... Rxa3 {[%clk 0:00:05]} 49. Rxa3 {[%clk 0:00:12.5]} 49... Rb7
{[%clk 0:00:05.9]} 50. Rb3 {[%clk 0:00:12]} 50... b4 {[%clk 0:00:06.4]} 51. Kg3
{[%clk 0:00:12.8]} 51... Ke6 {[%clk 0:00:07.2]} 52. Kf4 {[%clk 0:00:13.5]} 52...
Rb5 {[%clk 0:00:07.5]} 53. g3 {[%clk 0:00:13.5]} 53... Kf6 {[%clk 0:00:08.2]}
54. Ke3 {[%clk 0:00:11.4]} 54... Ke5 {[%clk 0:00:08.4]} 55. Kd3 {[%clk
0:00:12.3]} 55... Kd5 {[%clk 0:00:09]} 56. Rb1 {[%clk 0:00:11.8]} 56... b3
{[%clk 0:00:09.9]} 57. Kc3 {[%clk 0:00:12.4]} 57... b2 {[%clk 0:00:10.6]} 58.
Kc2 {[%clk 0:00:12.8]} 58... Kc4 {[%clk 0:00:10.8]} 59. Kd2 {[%clk 0:00:12.1]}
59... Kb3 {[%clk 0:00:10.8]} 60. Kd3 {[%clk 0:00:12.3]} 60... Rd5+ {[%clk
0:00:11.1]} 61. Ke2 {[%clk 0:00:12.1]} 61... Kc2 {[%clk 0:00:11.9]} 0-1

[Event "Early-Titled-Tuesday-Blitz-May-14-2024"]
[Site "Chess.com"]
[Date "2024.05.14"]
[Round "2"]
[White "Alphafischer2019"]
[Black "DenLaz"]
[Result "0-1"]
[WhiteElo "2671"]
[BlackElo "3114"]
[TimeControl "180+1"]
[EndTime "8:18:59 PDT"]
[Termination "DenLaz won by resignation"]

1. Nf3 {[%clk 0:03:00.9]} 1... f5 {[%clk 0:02:59.6]} 2. d4 {[%clk 0:02:59.3]}
2... Nf6 {[%clk 0:03:00.2]} 3. Bf4 {[%clk 0:03:00.1]} 3... g6 {[%clk 0:03:00]}
4. e3 {[%clk 0:03:00.2]} 4... Bg7 {[%clk 0:03:00.6]} 5. Be2 {[%clk 0:02:59.8]}
5... d6 {[%clk 0:03:01.1]} 6. h3 {[%clk 0:02:59.7]} 6... O-O {[%clk 0:03:00.5]}
7. O-O {[%clk 0:02:58.8]} 7... Nc6 {[%clk 0:03:01.1]} 8. c4 {[%clk 0:02:54.3]}
8... Ne4 {[%clk 0:02:59.8]} 9. Bh2 {[%clk 0:02:37.4]} 9... e5 {[%clk 0:02:57.8]}
10. dxe5 {[%clk 0:02:33.5]} 10... dxe5 {[%clk 0:02:57.1]} 11. Qc2 {[%clk
0:02:34.1]} 11... Qe7 {[%clk 0:02:54]} 12. Nbd2 {[%clk 0:02:26.2]} 12... Nxd2
{[%clk 0:02:52.9]} 13. Nxd2 {[%clk 0:02:27.1]} 13... Be6 {[%clk 0:02:48.8]} 14.
Rad1 {[%clk 0:02:26.2]} 14... Rad8 {[%clk 0:02:48.1]} 15. a3 {[%clk 0:02:23.2]}
15... a5 {[%clk 0:02:47.1]} 16. Nb1 {[%clk 0:02:21.9]} 16... e4 {[%clk
0:02:39.4]} 17. Nc3 {[%clk 0:02:20.7]} 17... Ne5 {[%clk 0:02:39.3]} 18. Nd5
{[%clk 0:02:15]} 18... Qf7 {[%clk 0:02:38.1]} 19. b3 {[%clk 0:01:50.1]} 19... g5
{[%clk 0:02:26.1]} 20. Nc3 {[%clk 0:01:29.5]} 20... h5 {[%clk 0:02:10.5]} 21.
Nb5 {[%clk 0:01:16.1]} 21... g4 {[%clk 0:01:50.2]} 22. h4 {[%clk 0:01:03.1]}
22... Qe7 {[%clk 0:01:40.6]} 23. Bxe5 {[%clk 0:00:42.7]} 23... Bxe5 {[%clk
0:01:39.6]} 24. g3 {[%clk 0:00:43.6]} 24... c6 {[%clk 0:01:25.1]} 25. Nd4 {[%clk
0:00:42.9]} 25... Bc8 {[%clk 0:01:25.2]} 26. c5 {[%clk 0:00:15.2]} 26... Kg7
{[%clk 0:01:24.6]} 27. Qc3 {[%clk 0:00:14]} 27... Qf6 {[%clk 0:01:14.4]} 28. Rd2
{[%clk 0:00:13.3]} 28... f4 {[%clk 0:00:19.3]} 29. gxf4 {[%clk 0:00:11.4]} 29...
Qxh4 {[%clk 0:00:19.1]} 30. Ne6+ {[%clk 0:00:09.2]} 30... Bxe6 {[%clk
0:00:16.8]} 31. Qxe5+ {[%clk 0:00:10.1]} 31... Qf6 {[%clk 0:00:17.3]} 32. Qxf6+
{[%clk 0:00:09.8]} 32... Kxf6 {[%clk 0:00:17.4]} 33. Rfd1 {[%clk 0:00:10.6]}
33... Rxd2 {[%clk 0:00:11.6]} 34. Rxd2 {[%clk 0:00:11.5]} 34... Bxb3 {[%clk
0:00:11.8]} 35. Rb2 {[%clk 0:00:12.1]} 35... a4 {[%clk 0:00:12.1]} 36. Rd2
{[%clk 0:00:10.9]} 36... Ke7 {[%clk 0:00:09.8]} 37. Rd4 {[%clk 0:00:11]} 37...
Rf5 {[%clk 0:00:05.8]} 38. Rxe4+ {[%clk 0:00:11.2]} 38... Kf6 {[%clk 0:00:06.4]}
39. Rb4 {[%clk 0:00:11.7]} 39... Rxc5 {[%clk 0:00:06.3]} 40. Rxb7 {[%clk
0:00:12.4]} 40... Rc2 {[%clk 0:00:06.5]} 41. Bd3 {[%clk 0:00:13]} 41... Rd2
{[%clk 0:00:05.3]} 42. Be4 {[%clk 0:00:13.5]} 42... h4 {[%clk 0:00:05.2]} 43.
Bxc6 {[%clk 0:00:13.6]} 43... Rd1+ {[%clk 0:00:04.5]} 44. Kg2 {[%clk 0:00:13.6]}
44... Rd2 {[%clk 0:00:05.2]} 45. Rb6 {[%clk 0:00:13.5]} 45... Ke7 {[%clk
0:00:05.3]} 46. Be4 {[%clk 0:00:13.9]} 46... g3 {[%clk 0:00:05.5]} 47. Rb7+
{[%clk 0:00:13.9]} 47... Kd6 {[%clk 0:00:05.2]} 48. Rb6+ {[%clk 0:00:14.6]}
48... Kc5 {[%clk 0:00:05.3]} 49. Rc6+ {[%clk 0:00:15.3]} 49... Kb5 {[%clk
0:00:05.9]} 50. Kg1 {[%clk 0:00:15.2]} 50... gxf2+ {[%clk 0:00:05.6]} 51. Kg2
{[%clk 0:00:13]} 51... h3+ {[%clk 0:00:06]} 52. Kf1 {[%clk 0:00:12.9]} 52...
Bc4+ {[%clk 0:00:06.7]} 53. Rxc4 {[%clk 0:00:12.7]} 53... Kxc4 {[%clk
0:00:07.6]} 54. f5 {[%clk 0:00:12.9]} 54... Kc5 {[%clk 0:00:08.2]} 55. f6 {[%clk
0:00:12.2]} 55... Kd6 {[%clk 0:00:08.9]} 56. Bf5 {[%clk 0:00:11.6]} 56... h2
{[%clk 0:00:09.2]} 57. Be4 {[%clk 0:00:11.7]} 57... Rd1+ {[%clk 0:00:09.6]} 58.
Kxf2 {[%clk 0:00:11.8]} 58... h1=Q {[%clk 0:00:10.5]} 59. Bxh1 {[%clk
0:00:12.2]} 59... Rxh1 {[%clk 0:00:11.4]} 0-1